bitfinex/quotes_BTCUSD_20250101
["timestamp","ask_amount","ask_price","bid_price","bid_amount"]
[1735761558886,0.14415474,94771.0,94770.0,0.13953009]
[1735761559069,0.12761542,94771.0,94770.0,0.13953009]
[1735761559464,0.12761542,94771.0,94770.0,0.12444496]
[1735761560550,0.12761542,94771.0,94770.0,0.13953258]
[1735761562342,0.14415469,94771.0,94770.0,0.13953258]
[1735761562545,0.15857016,94771.0,94770.0,0.03554626]
[1735761562885,0.14415469,94771.0,94770.0,0.03554626]
[1735761563018,0.14415469,94771.0,94770.0,0.015]
[1735761563401,0.14415469,94771.0,94770.0,0.02045864]
[1735761563723,0.14415469,94771.0,94770.0,0.015]
[1735761563927,0.14415469,94771.0,94770.0,0.009]
[1735761564327,0.14415469,94771.0,94770.0,0.011]
[1735761564533,0.14415469,94771.0,94770.0,0.002]
[1735761564739,0.14415469,94771.0,94770.0,0.0040853]
[1735761564943,0.14415469,94771.0,94770.0,8.53e-05]
[1735761565141,0.14415469,94771.0,94770.0,0.0020853]
[1735761565334,0.14415469,94771.0,94770.0,0.0080853]
[1735761567174,0.14415469,94771.0,94770.0,0.0060853]
[1735761567578,0.14415469,94771.0,94770.0,0.0010853]
[1735761567982,0.12761542,94771.0,94770.0,0.0040853]
[1735761568429,0.12761542,94771.0,94770.0,0.0050853]
[1735761570010,0.12761542,94771.0,94770.0,0.0040853]
[1735761570898,0.12761542,94771.0,94770.0,8.53e-05]
[1735761571090,0.12761542,94771.0,94770.0,0.0040853]
[1735761571273,0.14415465,94771.0,94770.0,0.0040853]
[1735761571428,0.14415465,94771.0,94770.0,0.0020853]
[1735761571631,0.14415465,94771.0,94770.0,0.0070853]
[1735761572925,0.14415465,94771.0,94770.0,0.11107162]
[1735761573123,0.14415465,94771.0,94770.0,0.11653102]
[1735761573365,0.14415465,94771.0,94770.0,0.11453102]
[1735761573604,0.14415465,94771.0,94770.0,0.11653102]
[1735761573801,0.14415465,94771.0,94770.0,0.11153102]
[1735761574225,0.14415465,94771.0,94770.0,0.11553102]
[1735761574438,0.14415465,94771.0,94770.0,0.10953102]
[1735761574629,0.14415465,94771.0,94770.0,0.11253102]
[1735761574772,0.14415465,94771.0,94770.0,0.11953102]
[1735761578037,0.12761542,94771.0,94770.0,0.11953102]
[1735761578615,0.14037696,94771.0,94770.0,0.11953102]
[1735761579483,0.12761542,94771.0,94770.0,0.0155447]
[1735761582571,0.14415452,94771.0,94770.0,0.0155447]
[1735761583399,0.35518952,94771.0,94770.0,0.0155447]
[1735761583624,0.35518952,94771.0,94770.0,0.0100853]
[1735761584958,0.35518952,94771.0,94770.0,0.0030853]
[1735761585161,0.41203281,94771.0,94770.0,0.0030853]
[1735761585376,0.41403281,94771.0,94770.0,0.0030853]
[1735761585583,0.41203281,94771.0,94770.0,8.53e-05]
[1735761585914,0.41503281,94771.0,94770.0,8.53e-05]
[1735761586901,0.41403281,94771.0,94770.0,8.53e-05]
[1735761587187,0.41503281,94771.0,94770.0,8.53e-05]
[1735761588042,0.39849371,94771.0,94770.0,8.53e-05]
[1735761589613,0.39749371,94771.0,94770.0,8.53e-05]
[1735761589823,0.39649371,94771.0,94770.0,8.53e-05]
[1735761591004,0.39749371,94771.0,94770.0,8.53e-05]
[1735761591164,0.4140348,94771.0,94770.0,8.53e-05]
[1735761592274,0.4130348,94771.0,94770.0,8.53e-05]
[1735761592910,0.35619151,94771.0,94770.0,8.53e-05]
[1735761593311,0.35519151,94771.0,94770.0,8.53e-05]
[1735761593519,0.35619151,94771.0,94770.0,8.53e-05]
[1735761594260,0.35719151,94771.0,94770.0,8.53e-05]
[1735761594620,0.35619151,94771.0,94770.0,8.53e-05]
[1735761594823,0.35719151,94771.0,94770.0,8.53e-05]
[1735761595424,0.35619151,94771.0,94770.0,8.53e-05]
[1735761595721,0.35519151,94771.0,94770.0,8.53e-05]
[1735761597973,0.33865042,94771.0,94770.0,8.53e-05]
[1735761601348,0.35519116,94771.0,94770.0,8.53e-05]
[1735761601550,0.33865042,94771.0,94770.0,8.53e-05]
[1735761602609,0.12761542,94771.0,94770.0,8.53e-05]
[1735761604171,0.12861542,94771.0,94770.0,8.53e-05]
[1735761604786,0.12861542,94771.0,94770.0,0.0040853]
[1735761605001,0.12761542,94771.0,94770.0,0.0040853]
[1735761605132,0.12761542,94771.0,94770.0,0.0050853]
[1735761605562,0.12761542,94771.0,94770.0,0.0040853]
[1735761606178,0.07771542,94771.0,94770.0,0.10807162]
[1735761606350,0.0001706,94771.0,94770.0,0.10807162]
[1735761606897,0.0001706,94771.0,94770.0,0.13107162]
[1735761607320,0.0001706,94771.0,94770.0,0.24612963]
[1735761607777,0.0001706,94771.0,94770.0,0.27122301]
[1735761607983,0.0001706,94771.0,94770.0,0.6155029]
[1735761608189,0.0001706,94788.0,94771.0,0.023]
[1735761608387,0.0001706,94788.0,94773.0,0.023]
[1735761608589,0.0001706,94788.0,94779.0,0.211016]
[1735761608856,0.0446706,94791.0,94780.0,0.10398632]
[1735761609072,0.0446706,94791.0,94781.0,0.211012]
[1735761609283,0.0446706,94791.0,94782.0,0.10398632]
[1735761610293,0.01653728,94789.0,94782.0,0.10398632]
[1735761610501,0.01653728,94789.0,94782.0,0.10403602]
[1735761611227,0.0446706,94791.0,94782.0,0.10903602]
[1735761611445,0.0446706,94791.0,94782.0,0.10403602]
[1735761611645,0.0446706,94791.0,94782.0,0.10903602]
[1735761611819,0.0446706,94791.0,94782.0,0.11003602]
[1735761612467,0.0446706,94791.0,94782.0,0.10903602]
[1735761612675,0.0446706,94791.0,94782.0,0.11003602]
[1735761613328,0.0446706,94791.0,94782.0,0.10503602]
[1735761613645,0.0446706,94791.0,94782.0,0.10903602]
[1735761613846,0.0446706,94791.0,94782.0,0.10803602]
[1735761614069,0.01653687,94789.0,94782.0,0.10803602]
[1735761614268,0.01653687,94789.0,94782.0,0.11303602]
[1735761614727,0.01653687,94789.0,94782.0,0.12338915]
[1735761614942,0.01653687,94789.0,94782.0,0.10403602]
[1735761615352,0.01653687,94789.0,94782.0,0.10503602]
[1735761615754,0.01653687,94789.0,94782.0,0.10403602]
[1735761617045,0.01653687,94789.0,94782.0,0.10503602]
[1735761617421,0.01653687,94789.0,94782.0,0.11003602]
[1735761618058,0.0446706,94791.0,94782.0,0.11503602]
[1735761618641,0.0446706,94791.0,94782.0,0.11403602]
[1735761618838,0.0446706,94791.0,94782.0,0.10503602]
[1735761619044,0.0446706,94791.0,94782.0,0.11571465]
[1735761619500,0.0823,94792.0,94782.0,0.11571465]
[1735761620017,0.05526004,94791.0,94782.0,0.11571465]
[1735761620194,0.0823,94792.0,94782.0,0.11971465]
[1735761620399,0.0823,94792.0,94782.0,0.11571465]
[1735761620777,0.0823,94792.0,94782.0,0.11871465]
[1735761621148,0.0823,94792.0,94782.0,0.11471465]
[1735761621351,0.01653599,94790.0,94782.0,0.11771465]
[1735761621547,0.01653599,94790.0,94782.0,0.11571465]
[1735761621925,0.01653599,94790.0,94782.0,0.11771465]
[1735761623163,0.01653599,94790.0,94782.0,0.11571465]
[1735761623544,0.01653599,94790.0,94782.0,0.11971465]
[1735761623744,0.01653599,94790.0,94782.0,0.11471465]
[1735761624195,0.01653599,94790.0,94782.0,0.11971465]
[1735761624604,0.01653599,94790.0,94782.0,0.11871465]
[1735761624756,0.03581614,94789.0,94782.0,0.11879995]
[1735761624953,0.03581614,94789.0,94782.0,0.11979995]
[1735761625163,0.01653599,94790.0,94782.0,0.11979995]
[1735761626273,0.01653599,94790.0,94782.0,0.11479995]
[1735761626474,0.01653599,94790.0,94782.0,0.11979995]
[1735761627231,0.01653599,94790.0,94784.0,0.023]
[1735761627442,0.0001708,94795.0,94786.0,0.023]
[1735761627648,0.0001708,94795.0,94788.0,0.023]
[1735761627889,0.0001708,94795.0,94785.0,0.211003]
[1735761627890,0.0001708,94795.0,94790.0,0.023]
[1735761628091,0.0001708,94795.0,94791.0,0.10398632]
[1735761629442,0.0454,94790.0,94782.0,0.001135]
[1735761629646,0.0765,94789.0,94786.0,0.007]
[1735761629872,0.0765,94787.0,94783.0,0.10398632]
[1735761630725,0.0765,94787.0,94782.0,0.000135]
[1735761630726,0.422003,94786.0,94782.0,0.000135]
[1735761630925,0.0765,94785.0,94782.0,0.000135]
[1735761631133,0.256406,94784.0,94783.0,0.003]
[1735761631764,0.332906,94784.0,94783.0,0.003]
[1735761632326,0.256406,94784.0,94782.0,0.000135]
[1735761632665,0.0765,94783.0,94782.0,0.002135]
[1735761633176,0.0765,94783.0,94782.0,0.000135]
[1735761633520,0.0765,94783.0,94782.0,0.009135]
[1735761633739,0.0765,94783.0,94782.0,0.002135]
[1735761633943,0.15759464,94783.0,94782.0,0.002135]
[1735761634188,0.20299464,94783.0,94782.0,0.008135]
[1735761634399,0.1219,94783.0,94782.0,0.010135]
[1735761635597,0.1219,94783.0,94782.0,0.008135]
[1735761635815,0.1229,94783.0,94782.0,0.000135]
[1735761636158,0.13943731,94783.0,94782.0,0.000135]
[1735761636360,0.13843731,94783.0,94782.0,0.000135]
[1735761636697,0.13843731,94783.0,94782.0,0.002135]
[1735761637119,0.13843731,94783.0,94782.0,0.000135]
[1735761637500,0.13843731,94783.0,94782.0,0.004135]
[1735761637720,0.13843731,94783.0,94782.0,0.000135]
[1735761637915,0.1219,94783.0,94782.0,0.000135]
[1735761638164,0.0752,94790.0,94782.0,0.10412132]
[1735761638359,0.0752,94790.0,94783.0,0.10398632]
[1735761639737,0.0752,94790.0,94785.0,0.211003]
[1735761639877,0.0752,94790.0,94786.0,0.10398632]
[1735761641075,0.0752,94790.0,94786.0,0.10898632]
[1735761642463,0.0752,94790.0,94786.0,0.10998632]
[1735761642836,0.0001706,94791.0,94787.0,0.210999]
[1735761643043,0.0001706,94791.0,94788.0,0.10398632]
[1735761643260,0.0001706,94791.0,94789.0,0.210994]
[1735761643594,0.0001706,94791.0,94790.0,0.10398632]
[1735761645185,0.01670495,94791.0,94790.0,0.10398632]
[1735761645698,0.01670495,94791.0,94790.0,0.10798632]
[1735761646019,0.01670495,94791.0,94790.0,0.10398632]
[1735761646481,0.01670495,94791.0,94790.0,0.11598632]
[1735761646682,0.09680495,94791.0,94790.0,0.10698632]
[1735761647079,0.07186712,94791.0,94790.0,0.11298632]
[1735761647254,0.07186712,94791.0,94790.0,0.10398632]
[1735761647459,0.07186712,94791.0,94790.0,0.11298632]
[1735761647860,0.07186712,94791.0,94790.0,0.10398632]
[1735761648076,0.07186712,94791.0,94790.0,0.11298632]
[1735761649075,0.07186712,94791.0,94790.0,0.009]
[1735761649301,0.07186712,94791.0,94790.0,0.003]
[1735761649302,0.12106712,94791.0,94790.0,0.003]
[1735761649532,0.33205712,94791.0,94790.0,0.003]
[1735761649740,0.33205712,94791.0,94790.0,0.009]
[1735761650181,0.33205712,94791.0,94790.0,0.004]
[1735761650369,0.17540517,94791.0,94790.0,0.013]
[1735761650579,0.17540517,94791.0,94783.0,8.53e-05]
[1735761650786,0.38639617,94791.0,94784.0,0.10398632]
[1735761651005,0.38656677,94791.0,94790.0,0.013]
[1735761651212,0.38656677,94791.0,94790.0,0.004]
[1735761651420,0.12123772,94791.0,94790.0,0.004]
[1735761652167,0.12123772,94791.0,94784.0,0.10398632]
[1735761652589,0.12123772,94791.0,94790.0,0.013]
[1735761652997,0.12123772,94791.0,94790.0,0.009]
[1735761653319,0.12123772,94791.0,94784.0,0.10798632]
[1735761653749,0.12123772,94791.0,94784.0,0.11298632]
[1735761653925,0.12123772,94791.0,94785.0,0.00510175]
[1735761654119,0.12123772,94791.0,94790.0,0.004]
[1735761654349,0.12123772,94791.0,94790.0,0.01809545]
[1735761654520,0.12123772,94791.0,94790.0,0.00909545]
[1735761655685,0.12123772,94791.0,94790.0,0.004]
[1735761656072,0.210992,94790.0,94784.0,0.009]
[1735761656294,0.210992,94790.0,94784.0,0.004]
[1735761656647,0.210992,94790.0,94783.0,8.53e-05]
[1735761657267,0.12123772,94791.0,94783.0,8.53e-05]
[1735761657509,0.12123772,94791.0,94784.0,0.009]
[1735761657714,0.12123772,94791.0,94784.0,0.01410295]
[1735761657883,0.12123772,94791.0,94783.0,0.0040853]
[1735761658703,0.12123772,94791.0,94784.0,0.00510295]
[1735761659503,0.12123772,94791.0,94783.0,0.0040853]
[1735761659808,0.12123772,94791.0,94784.0,0.009]
[1735761660007,0.12123772,94791.0,94785.0,0.234003]
[1735761660008,0.07203772,94791.0,94785.0,0.234003]
[1735761660264,0.07203772,94791.0,94787.0,0.023]
[1735761660464,0.07203772,94791.0,94788.0,0.10398632]
[1735761660668,0.07203772,94791.0,94788.0,0.10908422]
[1735761661173,0.0001706,94791.0,94788.0,0.10908422]
[1735761662231,0.0001706,94791.0,94790.0,0.023]
[1735761662611,0.0001706,94791.0,94790.0,0.1320817]
[1735761664048,0.0001706,94791.0,94790.0,0.16010828]
[1735761664465,0.0001706,94791.0,94790.0,0.15610828]
[1735761664663,0.0001706,94791.0,94790.0,0.1410817]
[1735761664876,0.0001706,94791.0,94790.0,0.1450817]
[1735761665262,0.0001706,94791.0,94790.0,0.2450817]
[1735761665482,0.0001706,94791.0,94790.0,0.2360817]
[1735761665812,0.0001706,94791.0,94790.0,0.2450817]
[1735761666049,0.0001706,94791.0,94790.0,0.49447071]
[1735761666255,0.0001706,94791.0,94790.0,0.59847071]
[1735761666459,0.0001706,94791.0,94790.0,0.60747071]
[1735761666639,0.0001706,94791.0,94790.0,0.49847071]
[1735761666859,0.0001706,94791.0,94790.0,0.49447071]
[1735761667058,0.0001706,94791.0,94790.0,0.49244207]
[1735761667264,0.0001706,94791.0,94790.0,0.48344207]
[1735761667472,0.0001706,94791.0,94790.0,0.1360817]
[1735761667711,0.0001706,94791.0,94790.0,0.1320817]
[1735761667884,0.0001706,94791.0,94790.0,0.1370817]
[1735761668515,0.0001706,94791.0,94790.0,0.1460817]
[1735761669123,0.0001706,94791.0,94790.0,0.1500817]
[1735761669335,0.0001706,94791.0,94790.0,0.24418024]
[1735761669540,0.0001706,94791.0,94790.0,0.23118024]
[1735761669747,0.0001706,94791.0,94790.0,0.24018024]
[1735761669911,0.0001706,94791.0,94790.0,0.23518024]
[1735761670119,0.0001706,94791.0,94790.0,0.1410817]
[1735761670325,0.0001706,94791.0,94790.0,0.1460817]
[1735761670529,0.0001706,94791.0,94790.0,0.1611123]
[1735761670731,0.0001706,94791.0,94790.0,0.1561123]
[1735761671060,0.0001706,94791.0,94790.0,0.1471123]
[1735761671188,0.0001706,94791.0,94790.0,0.2521123]
[1735761671391,0.0001706,94791.0,94790.0,0.5104123]
[1735761671585,0.0001706,94791.0,94790.0,0.60451084]
[1735761672200,0.0001706,94791.0,94790.0,0.62356178]
[1735761672402,0.0001706,94791.0,94790.0,0.63256178]
[1735761672622,0.0001706,94791.0,94790.0,0.8816298]
[1735761672828,0.0001706,94791.0,94790.0,0.8733298]
[1735761673026,0.0001708,94795.0,94794.0,0.123]
[1735761673285,0.0001708,94795.0,94794.0,0.24201692]
[1735761673672,0.0001708,94795.0,94794.0,0.24710597]
[1735761674085,0.0001708,94795.0,94794.0,0.25610597]
[1735761674553,0.0001708,94795.0,94794.0,0.60827253]
[1735761675192,0.0001708,94795.0,94794.0,0.50827253]
[1735761675393,0.0001708,94795.0,94794.0,0.49927253]
[1735761675580,0.0001708,94795.0,94794.0,0.64027982]
[1735761675726,0.0001708,94795.0,94794.0,0.64427982]
[1735761676147,0.0001708,94795.0,94794.0,0.64927982]
[1735761676780,0.0001708,94795.0,94794.0,0.23507593]
[1735761677180,0.0001708,94795.0,94794.0,0.24007593]
[1735761677801,0.0001708,94795.0,94794.0,0.161087]
[1735761678571,0.0001708,94795.0,94794.0,0.152087]
[1735761679103,0.0001708,94795.0,94794.0,0.156087]
[1735761679296,0.0001708,94795.0,94794.0,0.511087]
[1735761679832,0.0001708,94795.0,94794.0,0.497087]
[1735761680020,0.0001708,94795.0,94794.0,0.511087]
[1735761680617,0.0001708,94795.0,94794.0,0.506087]
[1735761680816,0.0001708,94795.0,94794.0,0.85008805]
[1735761682065,0.0001708,94795.0,94794.0,0.85308805]
[1735761682314,0.0001708,94795.0,94794.0,1.08516799]
[1735761682761,0.0001708,94795.0,94794.0,1.09416799]
[1735761683874,0.0001708,94795.0,94794.0,0.99416799]
[1735761684091,0.0820708,94795.0,94794.0,0.99416799]
[1735761684491,0.0820708,94795.0,94794.0,0.97915636]
[1735761684996,0.0820708,94795.0,94794.0,0.49107735]
[1735761685211,0.0001708,94795.0,94794.0,0.47607735]
[1735761685437,0.0001708,94795.0,94794.0,0.49107735]
[1735761685839,0.0001708,94795.0,94794.0,0.49108694]
[1735761686079,0.0001708,94795.0,94794.0,0.40608496]
[1735761686253,0.0001708,94795.0,94794.0,0.41208496]
[1735761686832,0.0001708,94795.0,94794.0,0.94704051]
[1735761687278,0.0001708,94795.0,94794.0,0.93203092]
[1735761687705,0.0001708,94795.0,94794.0,0.9470428]
[1735761688505,0.0001708,94795.0,94794.0,0.9410428]
[1735761688935,0.0001708,94795.0,94794.0,0.9470428]
[1735761689104,0.0001708,94795.0,94794.0,0.97106236]
[1735761689732,0.0001708,94795.0,94794.0,0.96506236]
[1735761689954,0.0001708,94795.0,94794.0,0.7740584]
[1735761690148,0.0001708,94799.0,94795.0,0.694962]
[1735761690347,0.0001708,94799.0,94797.0,0.023]
[1735761690681,0.0001708,94799.0,94798.0,0.13206961]
[1735761691099,0.0001708,94799.0,94798.0,0.14708149]
[1735761692262,0.0001708,94799.0,94798.0,0.15208149]
[1735761692461,0.0001708,94799.0,94798.0,0.16108149]
[1735761692911,0.0001708,94799.0,94798.0,0.15608149]
[1735761693226,0.0001708,94799.0,94798.0,0.16108149]
[1735761694333,0.0001708,94799.0,94798.0,0.15608149]
[1735761694806,0.0001708,94799.0,94798.0,0.15208149]
[1735761695201,0.0001708,94799.0,94798.0,0.15608149]
[1735761695341,0.0001708,94799.0,94798.0,0.14708149]
[1735761695541,0.0001708,94799.0,94798.0,0.15208149]
[1735761695741,0.0001708,94799.0,94798.0,0.18511462]
[1735761695967,0.0001708,94799.0,94798.0,0.17111462]
[1735761696350,0.0001708,94799.0,94798.0,0.15608149]
[1735761696561,0.0001708,94799.0,94798.0,0.15208149]
[1735761696910,0.0001708,94799.0,94798.0,0.25651344]
[1735761697868,0.0001708,94799.0,94798.0,0.15760824]
[1735761698097,0.0001708,94799.0,94798.0,0.16260824]
[1735761698431,0.0001708,94799.0,94798.0,0.26051344]
[1735761698701,0.0001708,94799.0,94798.0,0.25151344]
[1735761698882,0.0001708,94799.0,94798.0,0.25651344]
[1735761699087,0.0001708,94799.0,94798.0,0.26551344]
[1735761699825,0.0001708,94799.0,94798.0,0.17160824]
[1735761700033,0.0001708,94799.0,94798.0,0.19565063]
[1735761700251,0.0001708,94799.0,94798.0,0.29565063]
[1735761700457,0.0001708,94799.0,94798.0,0.54565063]
[1735761700789,0.0001708,94799.0,94798.0,0.8924702]
[1735761701240,0.0001708,94799.0,94798.0,0.8784702]
[1735761701549,0.0001708,94799.0,94798.0,0.8844702]
[1735761702128,0.0001708,94799.0,94798.0,0.8934702]
[1735761702345,9.696e-05,94799.0,94798.0,0.8934702]
[1735761703661,0.07639162,94808.0,94807.0,0.210954]
[1735761703859,0.07639162,94808.0,94807.0,0.33794032]
[1735761704135,0.07639162,94808.0,94807.0,0.34300947]
[1735761704557,0.07639162,94808.0,94807.0,0.35802135]
[1735761704982,0.07639162,94808.0,94807.0,0.45207181]
[1735761705403,0.07639162,94808.0,94807.0,0.45607181]
[1735761705834,0.07639162,94808.0,94807.0,0.46507181]
[1735761706615,0.07639162,94808.0,94807.0,0.37102135]
[1735761707261,0.07639162,94808.0,94807.0,0.51209704]
[1735761708396,0.07639162,94808.0,94807.0,0.85933725]
[1735761709570,0.07639162,94808.0,94807.0,0.51209704]
[1735761711195,0.07639162,94808.0,94807.0,0.71833526]
[1735761711341,0.07639162,94808.0,94807.0,0.71850586]
[1735761711809,0.07647692,94808.0,94807.0,0.50755186]
[1735761712648,0.07647692,94808.0,94807.0,0.49253998]
[1735761713019,0.07647692,94808.0,94807.0,0.14522607]
[1735761713864,0.07647692,94808.0,94807.0,0.16025042]
[1735761714666,0.07647692,94808.0,94807.0,0.64886503]
[1735761715547,0.13404169,94808.0,94807.0,0.51680956]
[1735761715752,0.34499369,94808.0,94807.0,0.0131706]
[1735761717077,0.34499369,94808.0,94807.0,0.0091706]
[1735761717285,0.34499369,94808.0,94807.0,0.0001706]
[1735761717515,0.34599369,94808.0,94807.0,0.0001706]
[1735761717831,0.34499369,94808.0,94807.0,0.0001706]
[1735761718277,0.33342892,94808.0,94807.0,0.0001706]
[1735761718472,0.33242892,94808.0,94807.0,0.0001706]
[1735761718713,0.33342892,94808.0,94807.0,0.0001706]
[1735761720231,0.33242892,94808.0,94807.0,0.0001706]
[1735761720441,0.12147692,94808.0,94807.0,0.0001706]
[1735761721088,0.12147692,94808.0,94807.0,0.0011706]
[1735761721503,0.15055052,94808.0,94807.0,0.0001706]
[1735761721714,0.15055052,94808.0,94807.0,0.0051706]
[1735761722015,0.15055052,94808.0,94807.0,0.0001706]
[1735761722227,0.36150252,94808.0,94807.0,0.0031706]
[1735761722409,0.33242892,94808.0,94807.0,0.0031706]
[1735761723701,0.33242892,94808.0,94807.0,0.0001706]
[1735761723881,0.33242892,94808.0,94807.0,0.0011706]
[1735761724057,0.33242892,94808.0,94807.0,0.0021706]
[1735761724260,0.33242892,94808.0,94807.0,0.0011706]
[1735761724607,0.38678339,94808.0,94807.0,0.0011706]
[1735761724972,0.33242892,94808.0,94807.0,0.0011706]
[1735761725373,0.12147692,94808.0,94807.0,0.0011706]
[1735761726570,0.12147692,94808.0,94807.0,0.0001706]
[1735761726991,0.12147692,94808.0,94807.0,0.0031706]
[1735761728640,0.12142208,94808.0,94807.0,0.0031706]
[1735761734337,0.17577107,94808.0,94807.0,0.0031706]
[1735761734454,0.12142208,94808.0,94807.0,0.0031706]
[1735761737204,0.12142208,94808.0,94807.0,0.0001706]
[1735761737912,0.12142208,94808.0,94807.0,0.0061706]
[1735761738310,0.12142208,94808.0,94807.0,0.0081706]
[1735761742039,8.53e-05,94808.0,94807.0,0.13515692]
[1735761742419,8.53e-05,94808.0,94807.0,0.48515692]
[1735761742588,8.53e-05,94808.0,94807.0,0.51550034]
[1735761742958,8.53e-05,94808.0,94807.0,1.00175312]
[1735761743235,8.53e-05,94808.0,94807.0,0.99575312]
[1735761743367,8.53e-05,94808.0,94807.0,1.00875312]
[1735761743801,8.53e-05,94808.0,94807.0,0.8675859]
[1735761744001,8.53e-05,94808.0,94807.0,0.8635859]
[1735761744200,8.53e-05,94808.0,94807.0,0.8595859]
[1735761744583,8.53e-05,94808.0,94807.0,1.10356267]
[1735761744794,8.53e-05,94808.0,94807.0,1.12761653]
[1735761745629,8.53e-05,94808.0,94807.0,0.89263976]
[1735761746034,0.0001708,94812.0,94811.0,0.35]
[1735761746249,0.0001708,94812.0,94811.0,0.48210318]
[1735761746671,0.0001708,94812.0,94811.0,0.49712537]
[1735761747301,0.00066557,94812.0,94811.0,0.51112537]
[1735761747962,0.00066557,94812.0,94811.0,1.09302696]
[1735761750373,0.00066557,94812.0,94811.0,0.85821093]
[1735761751445,0.00066557,94812.0,94811.0,1.92363144]
[1735761751867,0.00066557,94812.0,94811.0,1.82363144]
[1735761752055,0.00066557,94812.0,94811.0,1.91863144]
[1735761752496,0.00066557,94812.0,94811.0,1.92563144]
[1735761753016,0.00066557,94812.0,94811.0,2.06657502]
[1735761753531,0.00066557,94812.0,94811.0,2.09955149]
[1735761753741,0.00066557,94812.0,94811.0,2.34456752]
[1735761754701,0.00066557,94812.0,94811.0,2.10075149]
[1735761754922,0.0001708,94830.0,94823.0,0.560919]
[1735761755147,0.0001708,94830.0,94823.0,1.91230496]
[1735761755349,0.0001708,94830.0,94823.0,1.91743391]
[1735761755548,0.0001708,94830.0,94823.0,1.95643257]
[1735761756090,0.0001708,94830.0,94823.0,2.53785423]
[1735761756312,0.0001708,94830.0,94823.0,2.51387776]
[1735761756560,0.0001708,94830.0,94823.0,2.52287776]
[1735761756717,0.0001708,94830.0,94823.0,2.52987776]
[1735761756913,0.0001708,94830.0,94823.0,2.28654166]
[1735761757140,0.0001708,94830.0,94823.0,2.29554166]
[1735761757539,0.0001708,94830.0,94823.0,2.28654166]
[1735761757944,0.0001708,94830.0,94823.0,2.13661223]
[1735761758154,0.0001708,94830.0,94823.0,2.12961223]
[1735761758580,0.0001708,94830.0,94823.0,2.13761223]
[1735761759096,0.0001708,94830.0,94823.0,2.12961223]
[1735761759285,0.0001708,94830.0,94823.0,2.13761223]
[1735761759738,0.0001708,94830.0,94823.0,1.79052667]
[1735761759947,0.0001708,94830.0,94823.0,1.77550448]
[1735761760611,0.0001708,94830.0,94823.0,1.79046305]
[1735761761898,0.0001708,94830.0,94823.0,1.77550448]
[1735761762104,0.0001708,94830.0,94829.0,0.1]
[1735761762279,0.0001708,94830.0,94829.0,0.58789132]
[1735761762526,0.0001708,94830.0,94829.0,0.5935769]
[1735761763352,0.0001708,94830.0,94829.0,0.6005769]
[1735761763536,0.0001708,94830.0,94829.0,0.6095769]
[1735761768786,0.0001708,94830.0,94829.0,0.5935769]
[1735761768989,0.0001708,94830.0,94829.0,0.6025769]
[1735761769382,0.0001708,94830.0,94829.0,0.6095769]
[1735761770855,0.0001708,94830.0,94829.0,0.6005769]
[1735761771182,0.0001708,94830.0,94829.0,0.61553684]
[1735761771390,0.0001708,94830.0,94829.0,0.60853684]
[1735761771595,0.0001708,94830.0,94829.0,0.61553684]
[1735761772207,0.0001708,94830.0,94829.0,0.62453684]
[1735761772847,0.0001708,94830.0,94829.0,0.63353684]
[1735761773051,0.0001708,94830.0,94829.0,0.60853684]
[1735761773260,0.0001708,94830.0,94829.0,0.61753684]
[1735761773468,0.0001708,94830.0,94829.0,0.62453684]
[1735761773669,0.0001708,94830.0,94829.0,0.61553684]
[1735761774188,0.0001708,94830.0,94829.0,0.62453684]
[1735761774612,0.0001708,94830.0,94829.0,0.61753684]
[1735761774827,0.0481708,94830.0,94829.0,0.51753684]
[1735761775021,0.0481708,94830.0,94829.0,0.52453684]
[1735761775251,0.0481708,94830.0,94829.0,0.51553684]
[1735761775435,0.0481708,94830.0,94829.0,0.52453684]
[1735761775612,0.0481708,94830.0,94829.0,0.51753684]
[1735761775812,0.0481708,94830.0,94829.0,0.50853684]
[1735761776161,0.0481708,94830.0,94829.0,0.5095769]
[1735761776367,0.0481708,94830.0,94829.0,0.5005769]
[1735761776574,0.0481708,94830.0,94829.0,0.5025769]
[1735761777003,0.0481708,94830.0,94829.0,0.4935769]
[1735761777176,0.0481708,94830.0,94829.0,0.51758624]
[1735761777974,0.0481708,94830.0,94829.0,0.52158624]
[1735761778178,0.0481708,94830.0,94829.0,0.62158624]
[1735761778179,0.0001708,94830.0,94829.0,0.62158624]
[1735761778383,0.0001708,94830.0,94829.0,0.61758624]
[1735761778764,0.0001708,94830.0,94829.0,0.62158624]
[1735761779169,0.0001708,94830.0,94829.0,0.61758624]
[1735761779381,0.0815708,94830.0,94829.0,0.60858624]
[1735761779563,0.0815708,94830.0,94829.0,0.61458624]
[1735761779767,0.0815708,94830.0,94829.0,0.62358624]
[1735761779970,0.08129837,94830.0,94829.0,0.62358624]
[1735761780950,0.08129837,94830.0,94829.0,0.61758624]
[1735761781314,0.08129837,94830.0,94829.0,0.62158624]
[1735761781520,0.08129837,94830.0,94829.0,0.61258624]
[1735761781739,0.08129837,94830.0,94829.0,0.61758624]
[1735761782169,8.54e-05,94834.0,94833.0,0.233897]
[1735761782325,8.54e-05,94834.0,94833.0,0.33788332]
[1735761782694,8.54e-05,94834.0,94833.0,0.35934974]
[1735761783155,0.0814854,94834.0,94833.0,0.35934974]
[1735761783348,0.0814854,94834.0,94833.0,0.36834974]
[1735761784294,0.0814854,94834.0,94833.0,0.37334974]
[1735761785064,0.0814854,94834.0,94833.0,0.36434974]
[1735761785254,0.0814854,94834.0,94833.0,0.3583404]
[1735761785478,0.0814854,94834.0,94833.0,0.37337256]
[1735761785692,0.0814854,94834.0,94833.0,0.36437256]
[1735761785902,0.0814854,94834.0,94833.0,0.37337256]
[1735761786106,0.0814854,94834.0,94833.0,0.36437256]
[1735761786511,0.0814854,94834.0,94833.0,0.46702162]
[1735761787138,0.0814854,94834.0,94833.0,0.46202162]
[1735761787335,0.0814854,94834.0,94833.0,0.50886686]
[1735761787543,0.0814854,94834.0,94833.0,0.51386686]
[1735761788098,0.0814854,94834.0,94833.0,0.50886686]
[1735761788250,0.0814854,94834.0,94833.0,0.49986686]
[1735761788460,0.0814854,94834.0,94833.0,0.90764355]
[1735761788855,0.0814854,94834.0,94833.0,0.89364355]
[1735761789198,0.0814854,94834.0,94833.0,0.90264355]
[1735761790171,0.0814854,94834.0,94833.0,0.90764355]
[1735761790561,0.0814854,94834.0,94833.0,0.96510447]
[1735761791538,0.0814854,94834.0,94833.0,0.73076837]
[1735761792487,0.0814854,94834.0,94833.0,0.96510447]
[1735761794454,0.0814854,94834.0,94833.0,0.73076837]
[1735761807053,0.1276854,94834.0,94833.0,0.49687137]
[1735761807460,0.1276854,94834.0,94833.0,0.51987137]
[1735761808517,0.1276854,94834.0,94833.0,0.74034593]
[1735761809444,0.1276854,94834.0,94833.0,0.50483921]
[1735761811289,0.1276854,94834.0,94833.0,0.69321539]
[1735761812061,0.1276854,94834.0,94833.0,0.50483921]
[1735761812683,0.1276854,94834.0,94833.0,0.51985749]
[1735761815309,0.1276854,94834.0,94833.0,1.28788931]